fUST/lending_fUST_20240215
["ID","MTS","AMOUNT","RATE_DAILY","PERIOD"]
[314094419,1707972640818,-1110.06,0.00036383,2]
[314094421,1707972640827,-1110.06,0.00036383,2]
[314094423,1707972640837,-1110.06,0.00036383,2]
[314094425,1707972640846,-1110.08,0.00036383,2]
[314094427,1707972640855,-1110.08,0.00036383,2]
[314094429,1707972640864,-1110.08,0.00036383,2]
[314094431,1707972640873,-1110.08,0.00036383,2]
[314094433,1707972640882,-276000.0,0.00036384,2]
[314094435,1707972640892,-16280.72,0.00036457,14]
[314094437,1707972640901,-855.86,0.00036457,14]
[314094439,1707972640911,-500.0,0.00036457,14]
[314094440,1707972640920,-17003.05,0.00036457,14]
[314094442,1707972640930,-637.27,0.00036457,14]
[314094444,1707972640940,-27049.88,0.00036457,14]
[314094447,1707972640949,-500.0,0.00036457,14]
[314094448,1707972640959,-500.0,0.00036478,14]
[314094450,1707972640970,-500.0,0.00036478,14]
[314094452,1707972640979,-500.0,0.00036479,14]
[314094454,1707972640988,-302.19009296,0.00036479,14]
[314094456,1707972640997,-500.0,0.00036479,14]
[314094458,1707972641006,-503.4326383,0.00036479,14]
[314094460,1707972641015,-511.00343445,0.00036479,14]
[314094462,1707972641024,-500.0,0.00036479,14]
[314094464,1707972641033,-315.01598404,0.00036479,14]
[314094466,1707972641042,-500.0,0.00036479,14]
[314094468,1707972641051,-500.0,0.00036479,14]
[314094470,1707972641060,-528.03076737,0.00036479,14]
[314094472,1707972641069,-500.0,0.00036479,14]
[314094475,1707972641079,-510.79586648,0.00036479,14]
[314094476,1707972641089,-564.36544628,0.00036479,14]
[314094479,1707972641098,-500.0,0.00036479,14]
[314094480,1707972641108,-500.0,0.00036479,7]
[314094483,1707972641120,-345.27422997,0.00036479,14]
[314094485,1707972641129,-500.0,0.00036479,14]
[314094487,1707972641139,-551.44609297,0.00036479,14]
[314094489,1707972641149,-500.0,0.00036479,14]
[314094491,1707972641158,-500.0,0.00036479,14]
[314094493,1707972641168,-500.0,0.00036479,14]
[314094494,1707972641176,-500.0,0.00036479,14]
[314094496,1707972641186,-450.74553218,0.00036479,14]
[314094499,1707972641196,-568.45781319,0.00036479,14]
[314094501,1707972641204,-503.59517549,0.00036479,14]
[314094503,1707972641213,-641.09533347,0.00036479,14]
[314094505,1707972641222,-502.27692986,0.00036479,14]
[314094507,1707972641231,-500.0,0.00036479,14]
[314094509,1707972641241,-500.0,0.00036479,14]
[314094511,1707972641249,-505.56615774,0.00036479,14]
[314094513,1707972641258,-500.0,0.00036479,14]
[314094515,1707972641268,-504.77975332,0.00036479,14]
[314094517,1707972641278,-500.0,0.00036479,14]
[314094518,1707972641286,-500.0,0.00036479,14]
[314094520,1707972641295,-508.16048991,0.00036479,14]
[314094522,1707972641305,-506.56484932,0.00036479,14]
[314094525,1707972641314,-500.0,0.00036479,14]
[314094527,1707972641324,-502.4620901,0.00036479,14]
[314094528,1707972641333,-500.0,0.00036479,14]
[314094530,1707972641345,-505.6144463,0.00036479,14]
[314094532,1707972641354,-500.0,0.00036479,14]
[314094534,1707972641363,-501.66356561,0.00036479,14]
[314094537,1707972641373,-339.79293651,0.00036479,14]
[314094539,1707972641382,-500.0,0.00036479,14]
[314094541,1707972641391,-500.0,0.00036479,14]
[314094542,1707972641400,-500.0,0.0003648,14]
[314094544,1707972641409,-439.02807789,0.00036481,14]
[314094547,1707972641419,-500.0,0.00036481,14]
[314094548,1707972641428,-500.0,0.00036481,14]
[314094550,1707972641437,-503.32932476,0.00036481,14]
[314094552,1707972641446,-508.6563458,0.00036481,14]
[314094555,1707972641456,-500.0,0.00036481,14]
[314094556,1707972641465,-504.24519245,0.00036481,14]
[314094559,1707972641475,-500.0,0.00036481,14]
[314094561,1707972641487,-500.0,0.00036481,14]
[314094563,1707972641496,-500.0,0.00036481,14]
[314094565,1707972641505,-503.4400308,0.00036481,14]
[314094567,1707972641515,-500.0,0.00036481,14]
[314094569,1707972641524,-500.0,0.00036481,14]
[314094571,1707972641533,-544.11636985,0.00036481,14]
[314094573,1707972641542,-500.0,0.00036481,14]
[314094575,1707972641552,-1849.72,0.00036481,14]
[314094577,1707972641560,-574.18027158,0.00036481,14]
[314094579,1707972641570,-506.21858276,0.00036481,14]
[314094581,1707972641578,-503.20204968,0.00036481,14]
[314094583,1707972641588,-500.0,0.00036481,14]
[314094585,1707972641597,-500.0,0.00036481,14]
[314094587,1707972641606,-500.0,0.00036481,14]
[314094588,1707972641616,-500.0,0.00036481,14]
[314094589,1707972641625,-500.0,0.00036481,14]
[314094590,1707972641634,-500.0,0.00036481,14]
[314094591,1707972641643,-500.0,0.00036481,14]
[314094592,1707972641652,-500.0,0.00036481,7]
[314094593,1707972641660,-2326.95,0.00036481,7]
[314094594,1707972641670,-178.61972058,0.00036481,14]
[314094595,1707972641678,-500.0,0.00036481,14]
[314094596,1707972641687,-502.96749761,0.00036481,14]
[314094597,1707972641696,-503.68135752,0.00036481,14]
[314094598,1707972641705,-504.68343651,0.00036481,14]
[314094599,1707972641714,-500.0,0.00036481,14]
[314094601,1707972641723,-502.47326589,0.00036481,14]
[314094603,1707972641732,-431.41224199,0.00036481,14]
[314094605,1707972641741,-500.0,0.00036481,14]
[314094607,1707972641750,-502.74075274,0.00036481,14]
[314094609,1707972641759,-500.0,0.00036481,14]
[314094611,1707972641768,-332.80978677,0.00036481,14]
[314094613,1707972641777,-542.99508916,0.00036481,14]
[314094615,1707972641786,-505.28274655,0.00036481,14]
[314094617,1707972641795,-500.0,0.00036481,14]
[314094619,1707972641804,-500.0,0.00036481,14]
[314094621,1707972641813,-555.85105106,0.00036481,14]
[314094623,1707972641822,-171.89335008,0.00036481,14]
[314094625,1707972641831,-506.64620486,0.00036481,14]
[314094627,1707972641841,-500.0,0.00036481,14]
[314094629,1707972641850,-500.0,0.00036481,14]
[314094631,1707972641859,-501.30006247,0.00036481,14]
[314094633,1707972641868,-514.834404,0.00036481,14]
[314094636,1707972641877,-500.0,0.00036481,14]
[314094638,1707972641887,-500.0,0.00036483,14]
[314094639,1707972641895,-500.0,0.00036484,14]
[314094641,1707972641904,-500.0,0.00036486,14]
[314094643,1707972641913,-500.0,0.00036486,14]
[314094645,1707972641922,-500.0,0.00036487,14]
[314094647,1707972641933,-500.0,0.00036487,7]
[314094650,1707972641942,-500.0,0.00036487,14]
[314094651,1707972641952,-500.0,0.00036487,7]
[314094653,1707972641961,-500.0,0.00036487,14]
[314094656,1707972641971,-392.64141406,0.00036487,14]
[314094658,1707972641980,-263.2000811,0.00036487,14]
[314094659,1707972641989,-502.73300401,0.00036487,14]
[314094661,1707972641998,-500.0,0.00036487,14]
[314094664,1707972642007,-500.0,0.00036488,14]
[314094666,1707972642016,-500.0,0.00036488,14]
[314094668,1707972642025,-500.0,0.00036489,14]
[314094670,1707972642035,-500.0,0.00036489,14]
[314094671,1707972642043,-490.0,0.00036489,14]
[314094674,1707972642053,-153.34627261,0.00036498,7]
[314094675,1707972642062,-500.0,0.00036516,14]
[314094677,1707972642071,-500.0,0.00036516,14]
[314094680,1707972642080,-500.0,0.00036516,14]
[314094689,1707972642160,-515.87291042,0.00036516,14]
[314094691,1707972642169,-500.0,0.00036516,14]
[314094693,1707972642178,-500.0,0.00036516,14]
[314094695,1707972642189,-576.70942644,0.00036516,14]
[314094697,1707972642199,-1364.21,0.00036516,14]
[314094699,1707972642209,-557.77740763,0.00036516,14]
[314094701,1707972642218,-500.0,0.00036516,14]
[314094703,1707972642227,-789.24,0.00036516,14]
[314094705,1707972642236,-507.8299765,0.00036516,14]
[314094707,1707972642245,-1643.32,0.00036516,14]
[314094709,1707972642255,-243.24558305,0.00036516,14]
[314094711,1707972642265,-500.0,0.00036516,14]
[314094713,1707972642274,-500.0,0.00036516,14]
[314094715,1707972642284,-500.0,0.00036518,14]
[314094718,1707972642293,-500.0,0.00036518,14]
[314094720,1707972642303,-500.0,0.00036518,14]
[314094722,1707972642312,-708.84,0.00036518,14]
[314094724,1707972642321,-2377.53,0.00036518,14]
[314094726,1707972642331,-1223.23,0.00036518,14]
[314094728,1707972642341,-849.03,0.00036518,14]
[314094730,1707972642350,-2047.66,0.00036518,14]
[314094732,1707972642359,-1375.14,0.00036518,14]
[314094734,1707972642368,-8504.9,0.00036518,14]
[314094736,1707972642377,-7996.03,0.00036518,14]
[314094738,1707972642386,-3337.16,0.00036518,14]
[314094740,1707972642395,-500.0,0.00036519,14]
[314094742,1707972642404,-569.62856393,0.00036519,14]
[314094744,1707972642413,-505.07339131,0.00036519,14]
[314094746,1707972642422,-500.0,0.00036519,14]
[314094748,1707972642431,-547.99777768,0.00036519,14]
[314094750,1707972642440,-611.26,0.00036519,14]
[314094752,1707972642449,-500.0,0.00036519,14]
[314094753,1707972642459,-916.37,0.00036519,14]
[314094755,1707972642468,-593.73,0.00036519,14]
[314094757,1707972642477,-540.13,0.00036519,14]
[314094759,1707972642486,-500.0,0.00036519,14]
[314094762,1707972642497,-393.15183719,0.00036519,14]
[314094764,1707972642510,-500.0,0.00036519,14]
[314094766,1707972642519,-698.3,0.00036519,14]
[314094768,1707972642528,-500.0,0.00036519,14]
[314094770,1707972642537,-510.66884095,0.00036519,14]
[314094772,1707972642546,-507.61309093,0.00036519,14]
[314094774,1707972642555,-500.0,0.00036519,14]
[314094776,1707972642564,-2549.29,0.00036519,14]
[314094778,1707972642573,-529.90121524,0.00036519,14]
[314094780,1707972642582,-500.0,0.00036519,14]
[314094782,1707972642592,-2113.44,0.00036519,14]
[314094783,1707972642601,-500.0,0.00036519,14]
[314094786,1707972642611,-500.0,0.00036519,14]
[314094788,1707972642619,-500.0,0.00036519,14]
[314094789,1707972642629,-500.0,0.00036519,14]
[314094791,1707972642638,-442.04517344,0.00036519,14]
[314094793,1707972642647,-1063.08,0.00036519,14]
[314094795,1707972642657,-500.0,0.00036519,14]
[314094797,1707972642667,-1637.93,0.00036519,14]
[314094799,1707972642676,-500.0,0.00036519,14]
[314094801,1707972642685,-500.0,0.00036519,14]
[314094803,1707972642694,-17716.28,0.00036519,14]
[314094805,1707972642703,-740.8,0.00036519,14]
[314094807,1707972642712,-500.0,0.00036519,14]
[314094809,1707972642722,-16568.06,0.00036519,14]
[314094811,1707972642732,-5157.56,0.00036519,14]
[314094814,1707972642741,-2054.27,0.00036519,14]
[314094816,1707972642750,-1395.93,0.00036519,14]
[314094817,1707972642761,-899.95,0.00036519,14]
[314094820,1707972642770,-300.0,0.00036581,3]
[314094822,1707972642779,-16280.72,0.00036594,14]
[314094823,1707972642789,-266.08583014,0.00036594,14]
[314094826,1707972642806,-589.77416986,0.00036594,14]
[314094828,1707972642815,-500.0,0.00036594,14]
[314094830,1707972642825,-17003.05,0.00036594,14]
[314094832,1707972642834,-637.27,0.00036594,14]
[314094834,1707972642845,-27049.88,0.00036594,14]
[314094836,1707972642854,-500.0,0.00036594,14]
[314094838,1707972642864,-500.0,0.00036615,14]
[314094840,1707972642873,-500.0,0.00036616,14]
[314094842,1707972642882,-500.0,0.00036616,14]
[314094844,1707972642891,-500.0,0.00036616,14]
[314094846,1707972642901,-500.0,0.00036616,14]
[314094848,1707972642910,-500.0,0.00036616,14]
[314094850,1707972642919,-500.0,0.00036616,14]
[314094853,1707972642929,-500.0,0.00036616,14]
[314094857,1707972642938,-548.30171102,0.00036616,14]
[314094859,1707972642947,-500.0,0.00036616,14]
[314094861,1707972642956,-500.0,0.00036616,14]
[314094863,1707972642965,-265.94803034,0.00036616,14]
[314094865,1707972642975,-500.0,0.00036616,14]
[314094867,1707972642984,-504.57521768,0.00036616,14]
[314094869,1707972642993,-511.85670083,0.00036616,14]
[314094871,1707972643002,-500.0,0.00036616,14]
[314094873,1707972643012,-500.0,0.00036616,14]
[314094875,1707972643021,-535.37576033,0.00036616,14]
[314094877,1707972643030,-500.0,0.00036616,14]
[314094879,1707972643039,-500.0,0.00036616,14]
[314094881,1707972643048,-500.0,0.00036616,14]
[314094883,1707972643057,-500.0,0.00036616,14]
[314094885,1707972643067,-462.73484267,0.00036616,14]
[314094887,1707972643076,-155.83992726,0.00036616,2]
[314094889,1707972643085,-500.0,0.00036617,14]
[314094891,1707972643095,-500.0,0.00036617,14]
[314094893,1707972643107,-229.69975012,0.00036618,14]
[314094895,1707972643117,-504.65261844,0.00036618,14]
[314094897,1707972643126,-500.0,0.00036618,14]
[314094899,1707972643135,-502.74547419,0.00036618,14]
[314094901,1707972643144,-563.14162363,0.00036618,14]
[314094903,1707972643153,-501.86324605,0.00036618,14]
[314094905,1707972643163,-500.0,0.00036618,14]
[314094907,1707972643172,-507.25398123,0.00036618,14]
[314094909,1707972643181,-505.77159695,0.00036618,14]
[314094911,1707972643191,-1849.72,0.00036618,14]
[314094913,1707972643200,-500.0,0.00036618,14]
[314094915,1707972643210,-500.0,0.00036618,14]
[314094917,1707972643219,-500.0,0.00036618,14]
[314094919,1707972643228,-500.0,0.00036618,14]
[314094921,1707972643237,-333.62986552,0.00036618,14]
[314094923,1707972643246,-500.0,0.00036618,14]
[314094925,1707972643255,-388.7769542,0.00036618,7]
[314094927,1707972643264,-2326.95,0.00036618,7]
[314094930,1707972643274,-500.0,0.00036618,14]
[314094932,1707972643283,-500.0,0.00036618,14]
[314094933,1707972643292,-500.0,0.00036618,14]
[314094934,1707972643300,-504.2872166,0.00036618,14]
[314094936,1707972643310,-272.28977375,0.00036618,14]
[314094938,1707972643319,-240.52991629,0.00036618,14]
[314094940,1707972643329,-500.0,0.00036618,14]
[314094942,1707972643339,-500.0,0.00036618,14]
[314094944,1707972643349,-500.0,0.00036618,14]
[314094946,1707972643358,-500.0,0.00036624,14]
[314094948,1707972643366,-484.9654327,0.00036624,14]
[314094950,1707972643376,-500.0,0.00036653,14]
[314094952,1707972643386,-500.0,0.00036653,14]
[314094954,1707972643396,-500.0,0.00036653,14]
[314094955,1707972643407,-500.0,0.00036653,14]
[314094957,1707972643418,-500.0,0.00036653,14]
[314094960,1707972643429,-1364.21,0.00036653,14]
[314094961,1707972643439,-500.0,0.00036653,14]
[314094963,1707972643448,-789.24,0.00036653,14]
[314094965,1707972643457,-1643.32,0.00036653,14]
[314094967,1707972643466,-535.48702604,0.00036653,14]
[314094969,1707972643476,-500.0,0.00036653,14]
[314094971,1707972643484,-500.0,0.00036655,14]
[314094974,1707972643494,-151.708057,0.00036655,2]
[314094976,1707972643503,-500.0,0.00036655,14]
[314094978,1707972643512,-151.0,0.00036655,2]
[314094980,1707972643521,-624.09841432,0.00036655,14]
[314094982,1707972643529,-151.0,0.00036655,2]
[314094984,1707972643538,-708.84,0.00036655,14]
[314094986,1707972643547,-2377.53,0.00036655,14]
[314094988,1707972643557,-1223.23,0.00036655,14]
[314094990,1707972643565,-151.0,0.00036655,2]
[314094992,1707972643575,-849.03,0.00036655,14]
[314094994,1707972643584,-2047.66,0.00036655,14]
[314094996,1707972643595,-151.0,0.00036655,2]
[314094998,1707972643604,-220.21429,0.00036655,2]
[314095000,1707972643613,-151.0,0.00036655,2]
[314095002,1707972643622,-151.0,0.00036655,2]
[314095004,1707972643631,-1375.14,0.00036655,14]
[314095006,1707972643640,-8504.9,0.00036655,14]
[314095008,1707972643649,-7996.03,0.00036655,14]
[314095010,1707972643658,-3337.16,0.00036655,14]
[314095012,1707972643667,-810.611734,0.00036655,2]
[314095014,1707972643676,-442.256287,0.00036655,2]
[314095016,1707972643685,-513.83977446,0.00036656,14]
[314095018,1707972643694,-500.0,0.00036656,14]
[314095020,1707972643703,-611.26,0.00036656,14]
[314095022,1707972643712,-311.53393111,0.00036656,14]
[314095024,1707972643721,-916.37,0.00036656,14]
[314095026,1707972643730,-593.73,0.00036656,14]
[314095028,1707972643739,-540.13,0.00036656,14]
[314095030,1707972643748,-500.0,0.00036656,14]
[314095032,1707972643757,-500.0,0.00036656,14]
[314095034,1707972643766,-698.3,0.00036656,14]
[314095036,1707972643774,-500.0,0.00036656,14]
[314095038,1707972643783,-510.65141927,0.00036656,14]
[314095040,1707972643792,-208.33649981,0.00036656,14]
[314095047,1707972644125,-2210.24,0.00035672,3]
[314095048,1707972644135,-500.0,0.00036656,14]
[314095050,1707972644144,-2113.44,0.00036656,14]
[314095052,1707972644154,-235.92277961,0.00036656,14]
[314095054,1707972644163,-500.0,0.00036656,14]
[314095056,1707972644172,-550.05060092,0.00036656,14]
[314095058,1707972644181,-500.0,0.00036656,14]
[314095060,1707972644191,-1063.08,0.00036656,14]
[314095062,1707972644201,-507.31418786,0.00036656,14]
[314095064,1707972644210,-1637.93,0.00036656,14]
[314095066,1707972644219,-507.80564015,0.00036656,14]
[314095068,1707972644228,-500.0,0.00036656,14]
[314095070,1707972644237,-17716.28,0.00036656,14]
[314095072,1707972644246,-740.8,0.00036656,14]
[314095074,1707972644255,-16568.06,0.00036656,14]
[314095076,1707972644264,-5157.56,0.00036656,14]
[314095078,1707972644273,-2054.27,0.00036656,14]
[314095080,1707972644283,-1395.93,0.00036656,14]
[314095082,1707972644292,-899.95,0.00036656,14]
[314095084,1707972644301,-1499.99,0.0003671,2]
[314095086,1707972644310,-1500.0,0.00036713,2]
[314095088,1707972644318,-1500.0,0.00036714,2]
[314095090,1707972644327,-1377.63,0.00036718,2]
[314095092,1707972644336,-1500.0,0.0003672,2]
[314095094,1707972644345,-1499.99,0.00036721,2]
[314095096,1707972644354,-1500.0,0.00036721,2]
[314095098,1707972644363,-1500.0,0.00036724,2]
[314095100,1707972644373,-1500.0,0.00036724,2]
[314095102,1707972644382,-1500.0,0.00036724,2]
[314095104,1707972644391,-1500.0,0.00036724,2]
[314095106,1707972644400,-1500.0,0.00036725,2]
[314095108,1707972644409,-1500.0,0.00036725,2]
[314095110,1707972644417,-1500.0,0.00036726,2]
[314095112,1707972644427,-1500.0,0.00036726,2]
[314095114,1707972644435,-1500.0,0.00036729,2]
[314095116,1707972644444,-16280.72,0.00036731,14]
[314095118,1707972644454,-855.86,0.00036731,14]
[314095120,1707972644463,-500.0,0.00036731,14]
[314095122,1707972644472,-17003.05,0.00036731,14]
[314095124,1707972644481,-637.27,0.00036731,14]
[314095126,1707972644490,-27049.88,0.00036731,14]
[314095128,1707972644499,-500.0,0.00036731,14]
[314095130,1707972644508,-1500.0,0.00036732,2]
[314095132,1707972644517,-1500.0,0.00036733,2]
[314095134,1707972644526,-1500.0,0.00036735,2]
[314095136,1707972644535,-1500.0,0.00036744,2]
[314095138,1707972644544,-1500.0,0.00036744,2]
[314095140,1707972644552,-1500.0,0.00036749,2]
[314095142,1707972644561,-500.0,0.00036753,14]
[314095144,1707972644570,-500.0,0.00036753,14]
[314095146,1707972644579,-503.2226325,0.00036753,14]
[314095148,1707972644588,-500.0,0.00036753,14]
[314095150,1707972644597,-500.0,0.00036753,14]
[314095152,1707972644606,-155.0,0.00036753,2]
[314095154,1707972644615,-579.08869017,0.00036753,14]
[314095156,1707972644625,-500.0,0.00036753,14]
[314095158,1707972644634,-500.0,0.00036753,14]
[314095160,1707972644643,-500.0,0.00036753,14]
[314095162,1707972644652,-518.29543701,0.00036753,14]
[314095164,1707972644663,-500.0,0.00036753,14]
[314095166,1707972644672,-591.73211279,0.00036753,14]
[314095168,1707972644681,-500.0,0.00036753,14]
[314095170,1707972644690,-500.0,0.00036753,14]
[314095172,1707972644699,-500.0,0.00036755,14]
[314095174,1707972644708,-500.0,0.00036755,14]
[314095176,1707972644717,-500.0,0.00036755,14]
[314095178,1707972644726,-500.0,0.00036755,14]
[314095180,1707972644736,-500.0,0.00036755,14]
[314095182,1707972644745,-500.0,0.00036755,14]
[314095184,1707972644754,-500.0,0.00036755,14]
[314095186,1707972644763,-2326.95,0.00036755,7]
[314095188,1707972644772,-500.0,0.00036755,14]
[314095190,1707972644781,-500.0,0.00036755,14]
[314095192,1707972644790,-454.50790526,0.00036755,14]
[314095194,1707972644799,-500.0,0.00036755,14]
[314095196,1707972644808,-500.0,0.00036755,14]
[314095198,1707972644817,-513.66558092,0.00036755,14]
[314095200,1707972644826,-500.0,0.00036761,14]
[314095202,1707972644835,-300.0,0.00036779,3]
[314095204,1707972644844,-500.0,0.0003679,14]
[314095206,1707972644853,-500.0,0.0003679,14]
[314095208,1707972644862,-500.0,0.0003679,14]
[314095210,1707972644871,-500.0,0.0003679,14]
[314095212,1707972644881,-1364.21,0.0003679,14]
[314095214,1707972644891,-151.0,0.0003679,2]
[314095216,1707972644900,-500.0,0.0003679,14]
[314095218,1707972644909,-151.0,0.0003679,2]
[314095220,1707972644918,-151.0,0.0003679,2]
[314095223,1707972644929,-789.24,0.0003679,14]
[314095225,1707972644938,-1643.32,0.0003679,14]
[314095226,1707972644948,-500.0,0.0003679,14]
[314095228,1707972644957,-510.66607726,0.00036792,14]
[314095230,1707972644966,-500.0,0.00036792,14]
[314095232,1707972644974,-151.0,0.00036792,2]
[314095234,1707972644983,-151.0,0.00036792,2]
[314095236,1707972644993,-708.84,0.00036792,14]
[314095238,1707972645002,-2377.53,0.00036792,14]
[314095240,1707972645012,-1223.23,0.00036792,14]
[314095242,1707972645021,-151.0,0.00036792,2]
[314095244,1707972645030,-849.03,0.00036792,14]
[314095246,1707972645039,-2047.66,0.00036792,14]
[314095248,1707972645048,-1375.14,0.00036792,14]
[314095250,1707972645058,-8504.9,0.00036792,14]
[314095252,1707972645067,-6049.3542234,0.00036792,14]
[314095255,1707972645080,-1946.6757766,0.00036792,14]
[314095257,1707972645089,-609.42080626,0.00036792,14]
[314095260,1707972645107,-856.35960284,0.00036792,14]
[314095391,1707972646420,-930.19,0.00036381,14]
[314095393,1707972646430,-813.72680008,0.00036518,14]
[314095585,1707972865214,3917.01929092,0.00021,2]
[314095622,1707973832589,-1624.49667017,0.0003,2]
[314095680,1707973838702,-20267.94227049,0.0003,2]
[314095682,1707973838711,-268.0,0.0003,2]
[314095684,1707973838720,-633.15359351,0.00031951,2]
[314095686,1707973838729,-7200.02862303,0.00032329,5]
[314095688,1707973838738,-1093.43084007,0.00032338,5]
[314095690,1707973838747,-200.0,0.00032999,15]
[314095692,1707973838756,-175.8079134,0.00034631,2]
[314095693,1707973838765,-324.244693,0.0003491,2]
[314095696,1707973838775,-176.902515,0.0003491,2]
[314095697,1707973838784,-500.46779474,0.00035,7]
[314095700,1707973838794,-151.59419321,0.00035,2]
[314095702,1707973838803,-155.0522226,0.00035,2]
[314095704,1707973838812,-3173.7739,0.00035,2]
[314095705,1707973838821,-155.0,0.00035,2]
[314095708,1707973838831,-324.244693,0.00035346,2]
[314095709,1707973838841,-176.902515,0.00035346,2]
[314095711,1707973838850,-500.0,0.00035616,14]
[314095713,1707973838859,-500.0,0.00035681,14]
[314095715,1707973838868,-324.244693,0.00035782,2]
[314095717,1707973838877,-176.902515,0.00035782,2]
[314095719,1707973838886,-1000.0,0.000358,2]
[314095721,1707973838895,-232.57255496,0.00035897,2]
[314095723,1707973838904,-232.57255493,0.00035898,2]
[314095725,1707973838913,-232.57255493,0.00035899,2]
[314095727,1707973838921,-232.57255493,0.00035899,2]
[314095729,1707973838930,-232.57255493,0.000359,2]
[314095731,1707973838939,-1403.46,0.00035987,3]
[314095733,1707973838948,-2621.23,0.00035987,3]
[314095735,1707973838957,-2184.36,0.00035987,3]
[314095737,1707973838966,-500.0,0.00035987,14]
[314095739,1707973838975,-14571.35950289,0.00035996,31]
[314095741,1707973838984,-265.57378665,0.00035996,15]
[314095743,1707973838993,-500.0,0.00035996,15]
[314095745,1707973839002,-209.90373626,0.00035996,15]
[314095747,1707973839011,-513.61772715,0.00035996,15]
[314095749,1707973839020,-183.61581775,0.00035996,15]
[314095751,1707973839029,-241.81295279,0.00035996,15]
[314095753,1707973839038,-500.0,0.00035996,15]
[314095755,1707973839047,-500.0,0.00035996,15]
[314095757,1707973839056,-500.0,0.00035996,15]
[314095758,1707973839065,-500.0,0.00035996,15]
[314095760,1707973839075,-500.0,0.00035996,15]
[314095762,1707973839084,-500.0,0.00035996,15]
[314095764,1707973839093,-500.0,0.00035996,15]
[314095766,1707973839102,-500.0,0.00035996,15]
[314095768,1707973839112,-500.0,0.00035996,15]
[314095770,1707973839121,-500.0,0.00035996,15]
[314095772,1707973839130,-354.25238481,0.00035996,15]
[314095774,1707973839139,-500.0,0.00035996,15]
[314095776,1707973839148,-500.0,0.00035996,15]
[314095778,1707973839157,-500.0,0.00035996,15]
[314095780,1707973839166,-500.0,0.00035996,15]
[314095782,1707973839176,-500.0,0.00035996,15]
[314095784,1707973839185,-500.0,0.00035996,15]
[314095786,1707973839194,-500.0,0.00035996,15]
[314095788,1707973839204,-500.0,0.00035996,15]
[314095790,1707973839213,-500.0,0.00035996,15]
[314095792,1707973839223,-500.0,0.00035996,15]
[314095794,1707973839232,-500.0,0.00035996,15]
[314095796,1707973839242,-500.0,0.00035996,15]
[314095798,1707973839250,-500.0,0.00035996,15]
[314095800,1707973839259,-500.0,0.00035996,15]
[314095802,1707973839268,-500.0,0.00035996,15]
[314095804,1707973839279,-500.0,0.00035996,15]
[314095806,1707973839288,-500.0,0.00035996,15]
[314095808,1707973839297,-500.0,0.00035996,15]
[314095810,1707973839306,-550.0,0.00035996,15]
[314095812,1707973839315,-500.0,0.00035996,15]
[314095813,1707973839325,-500.0,0.00035996,15]
[314095815,1707973839334,-500.0,0.00035996,15]
[314095817,1707973839345,-500.0,0.00035996,15]
[314095818,1707973839354,-500.0,0.00035996,15]
[314095820,1707973839364,-15751.18,0.00035997,14]
[314095821,1707973839374,-242.14726824,0.00035997,14]
[314095822,1707973839383,-795.63,0.00035997,14]
[314095823,1707973839392,-500.0,0.00035997,14]
[314095824,1707973839401,-500.0,0.00035997,14]